bitfinex-derivatives/quotes_ETHF0:USTF0_20250428
["timestamp","ask_amount","ask_price","bid_price","bid_amount"]
[1745799510066,10.0357,1782.3,1782.1,10.68407]
[1745799510364,10.0357,1782.3,1782.2,1.12184]
[1745799510559,3.2078,1782.4,1782.3,1.12178]
[1745799510866,1.12147,1782.9,1782.1,17.7586]
[1745799511058,24.366,1783.0,1782.3,3.2078]
[1745799511259,10.122,1783.0,1782.5,6.01189]
[1745799511458,19.4407,1783.3,1782.7,3.2078]
[1745799511664,10.54744456,1783.5,1783.2,1.12119]
[1745799511863,10.122,1783.4,1783.2,1.12119]
[1745799512064,3.2078,1783.3,1782.9,3.2078]
[1745799512264,10.122,1783.2,1783.0,10.0364]
[1745799512465,3.2078,1783.3,1783.0,10.0364]
[1745799512667,3.2078,1783.5,1783.2,1.12121]
[1745799512964,3.2078,1783.5,1783.3,10.0364]
[1745799513167,10.0788,1783.4,1783.3,10.0364]
[1745799513763,3.2078,1783.5,1783.3,11.15755]
[1745799513966,3.2078,1783.5,1783.3,10.0364]
[1745799514157,2.64709999,1783.5,1783.4,1.12109]
[1745799514361,2.64709999,1783.5,1783.3,10.0364]
[1745799514565,10.0788,1783.4,1783.3,10.0364]
[1745799515767,10.0788,1783.4,1783.2,4.651]
[1745799516368,1.12115,1783.3,1783.2,4.651]
[1745799516872,1.12122,1783.2,1782.9,10.3269]
[1745799517068,1.12122,1783.2,1782.8,9.7831]
[1745799517069,3.2078,1783.0,1782.6,8.0699]
[1745799517266,10.77323,1782.9,1782.7,10.3269]
[1745799517466,9.6518,1782.9,1782.7,10.3269]
[1745799517667,10.77322,1782.9,1782.7,10.3269]
[1745799518768,9.6518,1782.9,1782.6,3.2078]
[1745799518967,1.12157,1782.7,1782.5,4.9304]
[1745799519171,10.2687,1782.6,1782.5,4.9304]
[1745799519372,10.2687,1782.6,1782.5,4.65]
[1745799519666,10.2687,1782.6,1782.5,5.77166]
[1745799519868,5.049,1782.8,1782.6,1.12157]
[1745799520064,10.2687,1782.9,1782.7,9.9368]
[1745799520265,3.2078,1783.0,1782.9,1.1214]
[1745799520773,10.2687,1783.2,1782.9,1.1214]
[1745799520966,3.2078,1783.1,1782.7,0.2804]
[1745799521167,1.12146,1782.9,1782.7,0.2804]
[1745799521367,10.2687,1782.8,1782.7,0.2804]
[1745799521871,11.39017,1782.8,1782.7,0.2804]
[1745799522170,10.2687,1782.8,1782.7,0.2804]
[1745799522671,4.3291,1783.1,1782.7,1.40192]
[1745799522875,4.3291,1783.1,1782.8,9.9068]
[1745799523070,3.2078,1783.1,1782.8,11.02826]
[1745799523271,11.16465,1783.2,1782.9,1.1214]
[1745799523465,11.16465,1783.2,1783.0,9.9068]
[1745799523673,1.12128,1783.1,1783.0,9.9068]
[1745799524171,14.56788215,1783.6,1783.0,14.9068]
[1745799524371,11.16445,1783.5,1783.1,1.12123]
[1745799524570,10.0434,1783.5,1783.2,9.9068]
[1745799524971,1.12113,1783.4,1783.2,9.9068]
[1745799525767,10.1698,1783.3,1783.2,9.9068]
[1745799525968,1.12123,1783.2,1782.9,10.71928]
[1745799526168,1.12123,1783.2,1783.0,9.5755]
[1745799526469,1.12128,1783.1,1783.0,9.5755]
[1745799526669,10.1698,1783.1,1783.0,9.5755]
[1745799526875,10.1698,1783.1,1783.0,10.69684]
[1745799527076,14.49871,1783.4,1783.1,1.12125]
[1745799527375,1.12115,1783.3,1783.2,9.5755]
[1745799527568,10.1698,1783.3,1783.2,9.5755]
[1745799527769,11.29095,1783.3,1783.2,9.5755]
[1745799527969,10.1698,1783.3,1783.2,9.5755]
[1745799528173,11.29095,1783.3,1783.0,1.12131]
[1745799528474,10.1698,1783.3,1783.1,10.65217]
[1745799528866,1.12122,1783.2,1783.1,9.5309]
[1745799529376,10.1698,1783.3,1783.1,9.5309]
[1745799529574,11.29099,1783.3,1783.1,9.5309]
[1745799529874,1.12128,1783.1,1782.9,10.71926]
[1745799530167,1.12128,1783.1,1782.9,19.1288]
[1745799530373,1.12126,1783.2,1782.9,20.25018]
[1745799530576,1.12134,1783.0,1782.9,14.1799]
[1745799530870,13.4603,1783.1,1782.7,0.2804]
[1745799531067,1.12147,1782.8,1782.7,0.2804]
[1745799531372,13.4603,1782.9,1782.7,1.40191]
[1745799531562,7.00939,1783.0,1782.7,1.40191]
[1745799531563,1.12135,1783.0,1782.8,10.0882]
[1745799532072,1.12135,1783.0,1782.8,14.7372]
[1745799532272,10.82851,1783.1,1782.8,15.85864]
[1745799532471,1.12134,1783.0,1782.9,10.0882]
[1745799532870,9.7072,1783.1,1782.9,10.0882]
[1745799533178,10.82852,1783.1,1782.9,10.0882]
[1745799533476,1.12134,1783.0,1782.9,10.0882]
[1745799534072,10.82852,1783.1,1782.9,10.0882]
[1745799534272,1.12134,1783.0,1782.9,10.0882]
[1745799534569,9.23515,1783.2,1782.9,10.0882]
[1745799534777,3.2078,1783.2,1783.1,1.12128]
[1745799535275,3.2078,1783.2,1782.9,11.20956]
[1745799535276,4.32904,1783.2,1782.9,11.20956]
[1745799535474,4.32905,1783.2,1782.9,1.12136]
[1745799535681,10.0627,1783.1,1782.8,14.7915]
[1745799535872,4.32893,1783.4,1783.1,1.12126]
[1745799536073,14.39163,1783.4,1783.2,10.1425]
[1745799536274,3.2078,1783.4,1783.2,10.1425]
[1745799536473,13.2705,1783.4,1783.2,10.1425]
[1745799536978,10.30208215,1783.7,1783.4,1.12109]
[1745799536979,11.42300215,1783.7,1783.4,1.12109]
[1745799537184,5.47208215,1783.7,1783.6,1.12096]
[1745799537478,5.47208215,1783.7,1783.6,4.645]
[1745799537887,16.41498215,1783.7,1783.6,4.645]
[1745799538078,15.29408215,1783.7,1783.6,4.645]
[1745799538276,16.41498215,1783.7,1783.6,4.645]
[1745799538477,19.62278215,1783.7,1783.6,4.645]
[1745799539786,29.38988215,1783.7,1783.2,4.645]
[1745799540085,4.32887,1783.5,1783.2,5.76619]
[1745799540287,9.5645,1783.4,1783.3,9.8019]
[1745799540582,3.2078,1783.5,1783.4,1.12109]
[1745799540789,4.32884,1783.5,1783.3,9.8019]
[1745799540989,4.32866,1783.8,1783.3,9.8019]
[1745799541183,1.12091,1783.7,1783.4,1.12106]
[1745799541383,4.32868,1783.8,1783.5,10.92291]
[1745799541578,9.5645,1783.7,1783.5,10.92291]
[1745799541980,9.5645,1783.7,1783.6,1.12096]
[1745799542179,3.2078,1783.8,1783.7,1.1209]
[1745799542379,12.7723,1784.0,1783.6,4.645]
[1745799542582,1.1208,1783.9,1783.7,9.8019]
[1745799542885,9.5645,1783.8,1783.7,9.8019]
[1745799543282,9.5645,1783.8,1783.7,10.9228]
[1745799543488,3.2078,1784.0,1783.7,9.8019]
[1745799543787,3.2078,1784.0,1783.8,1.12078]
[1745799543974,10.2725,1784.1,1783.9,10.68168]
[1745799544178,9.80050215,1784.2,1783.9,10.68168]
[1745799544179,9.80048215,1784.2,1783.9,10.68163]
[1745799544380,20.07298215,1784.2,1783.9,10.68163]
[1745799544682,20.07298215,1784.2,1784.0,4.645]
[1745799544683,8.67988215,1784.2,1784.0,4.645]
[1745799544880,5.47208215,1784.2,1784.1,10.68155]
[1745799545086,5.47208215,1784.2,1784.1,14.6698]
[1745799545385,5.47208215,1784.2,1784.1,15.79045]
[1745799547185,15.0005,1784.7,1784.1,19.6698]
[1745799547489,1.12017,1784.9,1784.4,1.1204]
[1745799547690,1.12017,1784.9,1784.5,15.31728]
[1745799547892,9.7836,1784.8,1784.5,15.31728]
[1745799548088,13.8514755,1785.0,1784.7,1.12027]
[1745799548298,23.6350755,1785.0,1784.8,10.6731]
[1745799548489,18.4838755,1785.0,1784.8,10.6731]
[1745799549185,8.7002755,1785.0,1784.9,5.76315]
[1745799550288,5.4924755,1785.0,1784.9,5.76315]
[1745799550688,5.4924755,1785.0,1784.9,15.95195]
[1745799550886,5.4924755,1785.0,1784.9,20.95195]
[1745799551990,9.20925881,1785.2,1784.9,19.8318]
[1745799552195,12.69770832,1785.6,1785.4,1.11983]
[1745799552494,13.0982,1786.1,1785.5,1.11977]
[1745799552495,9.4684,1785.9,1785.5,1.11977]
[1745799552795,10.58794,1785.9,1785.6,10.4492]
[1745799552996,9.4684,1785.9,1785.6,10.4492]
[1745799553197,10.58794,1785.9,1785.6,10.4492]
[1745799553997,9.4684,1785.9,1785.6,11.56889]
[1745799554199,9.4684,1785.9,1785.6,10.4492]
[1745799554496,12.6762,1785.9,1785.6,10.4492]
[1745799554697,1.11967,1785.7,1785.4,4.642]
[1745799555007,10.1063,1785.6,1785.5,10.4492]
[1745799555694,11.22601,1785.6,1785.5,10.4492]
[1745799555994,10.1063,1785.6,1785.5,10.4492]
[1745799556398,10.1063,1785.6,1785.4,4.642]
[1745799556589,4.32757,1785.5,1785.4,4.642]
[1745799556790,8.76457,1785.5,1785.4,4.642]
[1745799556992,1.11987,1785.4,1785.2,4.641]
[1745799557204,10.2069,1785.4,1785.2,4.641]
[1745799557394,4.717,1785.5,1785.2,4.641]
[1745799557697,4.717,1785.5,1785.3,9.5678]
[1745799557892,5.83678,1785.5,1785.3,9.5678]
[1745799558094,1.11983,1785.4,1785.2,4.9203]
[1745799558300,11.3268,1785.3,1785.2,4.9203]
[1745799559005,14.5346,1785.3,1785.2,4.9203]
[1745799559202,1.12015,1784.9,1784.8,62.891]
[1745799559498,4.32795,1784.9,1784.8,4.64]
[1745799559896,3.2078,1784.9,1784.8,4.64]
[1745799560096,12.8949,1785.1,1784.8,4.64]
[1745799560303,3.2078,1785.1,1785.0,1.12008]
[1745799561399,3.2078,1785.1,1785.0,5.93738]
[1745799561695,3.2078,1785.1,1784.9,9.8246]
[1745799561900,3.2078,1785.1,1784.8,4.64]
[1745799562202,10.6168,1785.0,1784.8,4.64]
[1745799562899,1.12015,1784.9,1784.8,4.64]
[1745799563097,6.02075,1784.9,1784.8,4.64]
[1745799563406,11.10385,1784.9,1784.8,4.64]
[1745799564804,9.9837,1784.9,1784.8,4.64]
[1745799565002,11.10385,1784.9,1784.8,4.64]
[1745799565199,19.31165,1784.9,1784.8,4.64]
[1745799565395,1.12034,1784.6,1784.5,4.64]
[1745799566098,10.4646,1784.6,1784.5,4.64]
[1745799566298,10.4646,1784.6,1784.5,7.8478]
[1745799566605,11.58494,1784.6,1784.5,4.64]
[1745799567601,10.4646,1784.6,1784.5,4.64]
[1745799567903,1.1203,1784.7,1784.5,4.64]
[1745799568099,1.1203,1784.7,1784.6,9.9729]
[1745799568598,10.59214,1784.8,1784.6,9.9729]
[1745799568805,9.4719,1784.8,1784.6,9.9729]
[1745799569006,9.4719,1784.8,1784.5,7.8478]
[1745799569199,1.12034,1784.6,1784.5,4.64]
[1745799570103,3.2078,1784.7,1784.5,4.64]
[1745799570299,9.4719,1784.6,1784.5,4.64]
[1745799570501,10.59224,1784.6,1784.5,4.64]
[1745799571594,1.12054,1784.3,1784.2,4.635]
[1745799571901,14.4719,1784.6,1783.9,15.50115]
[1745799571902,1.12064,1784.2,1783.9,15.50115]
[1745799572097,10.2098,1784.1,1784.0,1.12071]
[1745799572300,10.2098,1784.1,1784.0,9.7454]
[1745799574010,1.12071,1784.0,1783.9,4.635]
[1745799574202,11.33049,1784.1,1783.9,4.635]
[1745799574708,1.12071,1784.0,1783.9,4.635]
[1745799575306,3.2078,1784.2,1783.9,4.635]
[1745799575501,10.426,1784.3,1784.0,10.1445]
[1745799575702,10.426,1784.3,1784.0,14.9779]
[1745799576009,1.12042,1784.5,1784.1,1.12065]
[1745799576211,10.426,1784.6,1784.2,10.1445]
[1745799576703,1.1204,1784.5,1784.2,10.1445]
[1745799577011,10.426,1784.6,1784.3,4.636]
[1745799577012,11.54636,1784.6,1784.3,4.636]
[1745799577305,11.54636,1784.6,1784.4,10.2438]
[1745799578406,10.426,1784.6,1784.4,11.36426]
[1745799578711,10.426,1784.6,1784.4,11.36424]
[1745799578905,10.426,1784.6,1784.4,10.2438]
[1745799579106,10.426,1784.6,1784.4,11.36426]
[1745799579307,10.426,1784.6,1784.4,10.2438]
[1745799579813,10.426,1784.6,1784.4,11.36422]
[1745799580408,10.426,1784.6,1784.4,10.2438]
[1745799580616,11.54634,1784.6,1784.4,10.2438]
[1745799580806,10.426,1784.6,1784.4,11.36426]
[1745799581014,10.426,1784.6,1784.5,1.1204]
[1745799581209,9.8835,1784.7,1784.5,1.1204]
[1745799581409,14.5181,1784.7,1784.5,1.1204]
[1745799581612,15.63837,1784.7,1784.6,10.0563]
[1745799581917,14.5181,1784.7,1784.6,10.0563]
[1745799582113,3.2078,1784.8,1784.6,10.0563]
[1745799582319,3.2078,1784.8,1784.7,5.75627]
[1745799582711,3.2078,1784.8,1784.7,4.636]
[1745799583113,3.2078,1784.8,1784.7,15.53837]
[1745799583821,3.2078,1784.8,1784.7,14.4181]
[1745799584018,20.6661,1785.0,1784.7,15.53833]
[1745799584207,21.7862,1785.0,1784.7,14.4181]
[1745799584412,1.12015,1784.9,1784.7,14.4181]
[1745799584618,10.3367,1784.9,1784.7,14.4181]
[1745799585018,4.8659,1785.2,1784.9,1.12013]
[1745799585019,5.98587,1785.2,1784.9,1.12013]
[1745799585224,4.8659,1785.2,1785.0,9.7821]
[1745799585418,10.3367,1785.1,1785.0,10.90218]
[1745799585624,8.0737,1785.2,1785.0,10.90218]
[1745799585625,3.2078,1785.2,1785.0,10.90218]
[1745799585827,14.66435,1785.4,1785.1,1.12002]
[1745799586027,14.66435,1785.4,1785.2,9.7216]
[1745799586327,1.12017,1784.9,1784.7,4.636]
[1745799586529,10.3668,1784.8,1784.7,4.636]
[1745799586916,10.3668,1784.8,1784.7,15.47787]
[1745799587116,4.32785,1785.1,1784.8,1.12018]
[1745799587330,11.48678,1785.2,1784.9,10.84173]
[1745799587527,10.3668,1785.2,1784.9,9.7216]
[1745799587724,11.4868,1785.2,1784.9,9.7216]
[1745799587924,10.3668,1785.2,1784.9,9.7216]
[1745799588133,3.2078,1785.3,1785.0,4.8418]
[1745799588431,3.2078,1785.3,1785.1,14.3576]
[1745799589627,9.0958,1785.8,1785.2,9.9479]
[1745799589831,9.5762,1785.7,1785.5,1.11977]
[1745799590024,9.5762,1785.7,1785.6,9.9479]
[1745799590224,10.69586,1785.7,1785.5,4.636]
[1745799590424,9.5762,1785.7,1785.5,4.636]
[1745799590629,9.5762,1785.7,1785.6,9.9479]
[1745799592333,14.5762,1785.7,1785.3,3.2078]
[1745799592531,10.69589,1785.7,1785.3,4.32769]
[1745799592730,9.5762,1785.7,1785.4,10.90193]
[1745799593534,9.5762,1785.7,1785.5,1.11975]
[1745799593735,9.5762,1785.7,1785.6,9.7821]
[1745799593932,10.69585,1785.7,1785.6,14.4171]
[1745799594138,10.69585,1785.7,1785.6,4.635]
[1745799595438,9.5762,1785.7,1785.6,4.635]
[1745799595629,3.2078,1785.8,1785.6,4.635]
[1745799595829,1.11957,1785.9,1785.7,9.6099]
[1745799596225,10.85937,1785.9,1785.7,9.6099]
[1745799596829,9.7398,1785.9,1785.7,10.72954]
[1745799597029,10.85934,1785.9,1785.7,9.6099]
[1745799597636,9.7398,1785.9,1785.7,10.72953]
[1745799598233,10.85933,1785.9,1785.7,9.6099]
[1745799599631,10.85933,1785.9,1785.7,10.72954]
[1745799599838,9.7398,1785.9,1785.6,4.635]
[1745799600041,1.11965,1785.7,1785.6,4.635]
[1745799600434,11.53355,1785.7,1785.6,4.635]
[1745799603543,10.4139,1785.7,1785.6,5.75471]
[1745799603733,4.8069,1785.8,1785.6,5.75471]
[1745799603933,5.92648,1785.8,1785.7,10.1912]
[1745799604134,1.11965,1785.7,1785.6,4.635]
[1745799604440,11.29255,1785.7,1785.6,4.635]
[1745799605036,10.1729,1785.7,1785.6,4.635]
[1745799605241,11.29255,1785.7,1785.6,4.635]
[1745799606041,10.1729,1785.7,1785.6,4.635]
[1745799606342,11.29255,1785.7,1785.6,4.635]
[1745799608141,10.1729,1785.7,1785.6,4.635]
[1745799608344,11.29255,1785.7,1785.6,4.635]
[1745799609642,2.79928,1785.6,1785.2,14.3452]
[1745799609835,1.11989,1785.4,1785.2,14.3452]
[1745799610141,11.03471,1785.5,1785.2,15.46515]
[1745799610342,4.7911,1785.7,1785.2,14.3452]
[1745799610539,17.5459,1785.8,1785.3,3.2078]
[1745799610735,17.5459,1785.8,1785.4,9.8388]
[1745799611044,1.11966,1785.7,1785.4,9.8388]
[1745799611245,9.5312,1785.7,1785.4,10.95863]
[1745799611542,9.1343,1785.8,1785.4,10.95859]
[1745799612044,9.1343,1785.8,1785.5,1.11976]
[1745799612344,9.1343,1785.8,1785.6,14.4658]
[1745799612644,9.1343,1785.8,1785.7,9.8388]
[1745799613045,5.9265,1785.8,1785.7,9.8388]
[1745799613642,1.11965,1785.7,1785.6,4.627]
[1745799613946,11.36245,1785.7,1785.6,4.627]
[1745799614649,16.57025,1785.7,1785.6,4.627]
[1745799614846,1.11983,1785.4,1785.3,4.627]
[1745799615147,1.11981,1785.5,1785.3,4.627]
[1745799615540,11.36261,1785.5,1785.3,4.627]
[1745799616443,1.11983,1785.4,1785.3,4.627]
[1745799617350,10.2428,1785.5,1785.3,4.627]
[1745799617556,11.36263,1785.5,1785.3,4.627]
[1745799618051,3.2078,1785.6,1785.3,4.627]
[1745799618350,1.12002,1785.1,1785.0,4.627]
[1745799618746,3.2078,1785.2,1785.0,5.74706]
[1745799618952,14.8979,1785.3,1785.1,9.9833]
[1745799619144,16.01784,1785.3,1785.1,9.9833]
[1745799619751,1.11996,1785.2,1785.1,9.9833]
[1745799620051,10.1317,1785.2,1785.1,9.9833]
[1745799621252,3.2078,1785.5,1785.1,9.9833]
[1745799621447,4.32759,1785.5,1785.2,1.11991]
[1745799621647,4.32759,1785.5,1785.3,9.5381]
[1745799621844,1.11983,1785.4,1785.3,9.5381]
[1745799622246,11.25153,1785.4,1785.3,9.5381]
[1745799625452,1.11983,1785.4,1785.3,9.5381]
[1745799625652,8.4156,1785.7,1785.3,9.5381]
[1745799625956,3.2078,1785.7,1785.5,1.11973]
[1745799626151,3.2078,1785.7,1785.6,10.2375]
[1745799626653,9.1215148,1785.8,1785.7,1.11965]
[1745799627453,9.1215148,1785.8,1785.6,11.35718]
[1745799627957,9.1215148,1785.8,1785.7,1.11965]
[1745799628156,9.1215148,1785.8,1785.7,5.98715]
[1745799629755,3.2078,1785.9,1785.7,5.98715]
[1745799629956,3.2078,1785.9,1785.8,14.8139]
[1745799631254,1.11944,1786.1,1785.8,15.93348]
[1745799631456,11.42602,1786.1,1785.9,10.1949]
[1745799632452,1.11946,1786.0,1785.9,10.1949]
[1745799632849,10.2408748,1786.2,1785.9,11.31441]
[1745799633050,3.2078,1786.1,1786.0,1.11946]
[1745799633455,3.2078,1786.1,1785.9,11.31438]
[1745799633659,3.2078,1786.1,1786.0,1.11946]
[1745799634048,3.2078,1786.1,1785.9,11.31437]
[1745799634258,3.2078,1786.1,1786.0,1.11946]
[1745799634651,9.1215148,1786.2,1786.0,1.11946]
[1745799634852,9.1215148,1786.2,1786.1,10.98849]
[1745799636852,14.09154998,1786.5,1786.1,14.8691]
[1745799637155,10.88374998,1786.5,1786.4,1.11921]
[1745799637457,10.44396479,1786.5,1786.4,1.11921]
[1745799637658,10.44396479,1786.5,1786.4,16.05371]
[1745799638157,10.44396479,1786.8,1786.7,1.11902]
[1745799638353,4.08071401,1786.8,1786.7,9.22402]
[1745799639048,4.08071401,1786.8,1786.7,14.22402]
[1745799639256,5.59438673,1787.0,1786.9,1.11889]
[1745799639554,5.59438673,1787.0,1786.9,4.618]
[1745799639948,5.59438673,1787.0,1786.9,5.73689]
[1745799640558,5.59438673,1787.0,1786.9,4.618]
[1745799640758,5.59438673,1787.0,1786.9,5.73689]
[1745799640959,5.59438673,1787.0,1786.9,4.618]
[1745799641760,5.59438673,1787.0,1786.9,5.73689]
[1745799641955,5.59438673,1787.0,1786.9,15.64669]
[1745799642261,20.164,1787.2,1786.9,15.64669]
[1745799642453,20.164,1787.2,1787.0,1.11883]
[1745799642656,20.164,1787.2,1787.1,9.9098]
[1745799643065,4.8282,1787.2,1787.1,11.02857]
[1745799643465,15.0822,1787.6,1787.4,1.11856]
[1745799643666,15.0822,1787.6,1787.3,4.617]
[1745799643859,16.20068,1787.6,1787.3,4.617]
[1745799644058,15.0822,1787.6,1787.3,5.73563]
[1745799644257,3.2078,1788.4,1787.4,74.1608]
[1745799644457,20.36113328,1789.3,1788.6,3.2078]
[1745799644758,20.36113328,1789.3,1789.2,3.2078]
[1745799644962,20.36113328,1789.3,1789.2,7.8238]
[1745799645271,25.36113328,1789.3,1788.7,3.2078]
[1745799645461,3.2078,1789.2,1788.8,4.616]
[1745799645663,12.6377,1789.2,1788.6,3.2078]
[1745799645860,4.9425,1789.1,1788.6,3.2078]
[1745799646160,4.9425,1789.1,1788.8,3.2078]
[1745799646161,9.4299,1789.0,1788.8,3.2078]
[1745799647064,14.4299,1789.0,1788.6,3.2078]
[1745799647368,14.4299,1789.0,1788.4,7.8218]
[1745799647369,1.11776,1788.8,1788.4,7.8218]
[1745799647663,1.11789,1788.5,1788.4,3.2078]
[1745799647869,1.11787,1788.6,1788.4,3.2078]
[1745799648066,4.9422,1788.6,1788.4,3.2078]
[1745799648366,1.11789,1788.5,1788.4,3.2078]
[1745799648566,10.2627,1788.5,1788.4,3.2078]
[1745799648867,16.38059,1788.5,1788.4,3.2078]
[1745799649371,15.2627,1788.5,1788.4,3.2078]
[1745799649668,10.2627,1788.5,1788.4,3.2078]
[1745799650374,4.9422,1788.6,1788.4,3.2078]
[1745799650557,10.2603,1788.8,1788.4,3.2078]
[1745799650863,10.2603,1788.8,1788.7,3.2078]
[1745799651265,1.11783,1788.6,1788.5,3.2078]
[1745799651868,1.11779,1788.7,1788.5,3.2078]
[1745799652074,10.2603,1788.6,1788.5,3.2078]
[1745799653059,1.11802,1788.3,1788.2,4.614]
[1745799653265,4.32582,1788.3,1788.2,4.614]
[1745799653973,1.11842,1787.7,1787.6,4.613]
[1745799654167,1.11838,1787.8,1787.6,4.613]
[1745799654470,10.3072,1787.7,1787.6,4.613]
[1745799655867,11.42559,1787.7,1787.6,4.613]
[1745799657175,1.1187,1787.3,1787.2,4.607]
[1745799657876,13.515,1787.7,1787.2,4.607]
[1745799658176,1.11847,1787.6,1787.3,3.2078]
[1745799658361,10.75747,1787.6,1787.3,4.32644]
[1745799658560,9.639,1787.6,1787.4,10.1147]
[1745799658764,10.75748,1787.6,1787.4,10.1147]
[1745799659168,9.639,1787.6,1787.4,10.1147]
[1745799659967,10.75747,1787.6,1787.4,10.1147]
[1745799660362,9.639,1787.6,1787.3,3.2078]
[1745799660574,1.11858,1787.4,1787.3,3.2078]
[1745799662673,1.11858,1787.4,1787.3,0.2797]
[1745799663172,11.08638,1787.4,1787.3,0.2797]
[1745799663974,9.9678,1787.4,1787.3,0.2797]
[1745799664174,11.08638,1787.4,1787.3,0.2797]
[1745799665064,14.9678,1787.4,1786.8,3.2078]
[1745799665269,1.11883,1787.0,1786.9,4.608]
[1745799665476,3.2078,1787.2,1786.9,4.608]
[1745799665674,11.30382,1787.1,1786.9,4.608]
[1745799665874,1.11883,1787.0,1786.9,4.608]
[1745799667275,11.30382,1787.1,1786.9,4.608]
[1745799667671,9.6871,1787.3,1787.0,3.2078]
[1745799667878,4.7497,1787.3,1787.2,1.11871]
[1745799668071,4.7497,1787.3,1787.1,11.42683]
[1745799668473,10.185,1787.5,1787.4,1.11858]
[1745799668770,1.11852,1787.5,1787.4,4.608]
[1745799669175,10.58789,1787.6,1787.4,4.608]
[1745799669472,9.4694,1787.6,1787.5,1.11852]
[1745799669672,13.95981,1787.7,1787.5,9.4641]
[1745799669872,13.95981,1787.7,1787.4,4.608]
[1745799669873,1.11852,1787.5,1787.4,4.608]
[1745799670365,11.00417,1787.5,1787.0,3.2078]
[1745799670571,1.11877,1787.1,1787.0,3.2078]
[1745799670776,1.11877,1787.1,1786.9,14.0721]
[1745799671081,9.4694,1787.0,1786.9,14.0721]
[1745799672275,5.0233,1787.2,1786.9,14.0721]
[1745799672475,5.0233,1787.2,1787.1,1.11877]
[1745799672678,5.0233,1787.2,1787.0,3.2078]
[1745799672982,5.0233,1787.2,1787.1,9.9625]
[1745799673280,5.0233,1787.2,1786.9,4.608]
[1745799673582,1.11883,1787.0,1786.9,4.608]
[1745799673883,4.32663,1787.0,1786.9,4.608]
[1745799674079,9.4373,1787.1,1786.7,0.2789]
[1745799674382,10.3232,1786.9,1786.7,1.39788]
[1745799674581,10.3232,1786.9,1786.8,10.3143]
[1745799674879,11.44209,1786.9,1786.8,10.3143]
[1745799675272,9.8633,1787.2,1786.8,10.3143]
[1745799675476,1.11885,1787.0,1786.8,11.43326]
[1745799675876,3.2078,1787.3,1786.8,11.43326]
[1745799675877,3.2078,1787.3,1786.9,3.2078]
[1745799676082,10.3232,1787.4,1787.1,3.2078]
[1745799676284,6.31666,1787.5,1787.2,11.43297]
[1745799676482,1.11864,1787.3,1787.2,15.0506]
[1745799676778,13.531,1787.4,1787.0,7.8168]
[1745799676985,1.11877,1787.1,1787.0,4.609]
[1745799678676,11.53347,1787.1,1787.0,4.609]
[1745799680483,4.8158,1787.4,1787.0,7.8168]
[1745799680784,15.2749,1787.4,1787.2,3.2078]
[1745799680979,16.39348,1787.4,1787.3,10.2123]
[1745799681180,15.2749,1787.4,1787.0,7.8168]
[1745799681375,15.2749,1787.4,1787.0,4.609]
[1745799681581,1.11875,1787.2,1787.1,10.2123]
[1745799682282,1.11871,1787.2,1787.1,10.2123]
[1745799682684,10.4591,1787.4,1787.2,1.11867]
[1745799682884,10.4591,1787.4,1787.3,10.2123]
[1745799683387,11.57768,1787.4,1787.3,10.2123]
[1745799683587,6.31666,1787.5,1787.3,10.2123]
[1745799683786,1.11858,1787.4,1787.3,10.2123]
[1745799684187,1.11871,1787.2,1787.1,5.1697]
[1745799684373,11.06783,1787.4,1787.2,1.11869]
[1745799684577,1.11864,1787.3,1787.1,16.16943]
[1745799684781,1.11864,1787.3,1787.2,9.881]
[1745799686690,1.11877,1787.1,1787.0,7.8168]
[1745799686885,1.11877,1787.1,1787.0,4.609]
[1745799687387,1.11889,1786.9,1786.8,0.2789]
[1745799687588,1.11896,1786.8,1786.7,15.0537]
[1745799688089,9.5901,1786.9,1786.7,16.17269]
[1745799688281,1.1188,1787.1,1786.9,1.11888]
[1745799688481,1.1188,1787.1,1787.0,10.4477]
[1745799689586,1.1187,1787.3,1787.1,1.11875]
[1745799689887,1.1187,1787.3,1787.2,10.0274]
[1745799690282,1.11846,1787.6,1787.3,1.11862]
[1745799690483,9.5159,1787.8,1787.4,13.2352]
[1745799690684,9.5159,1787.8,1787.5,4.606]
[1745799690884,1.11845,1787.7,1787.6,10.0274]
[1745799691084,9.5159,1787.8,1787.4,4.606]
[1745799691085,1.11852,1787.5,1787.4,4.606]
[1745799691393,1.11852,1787.5,1787.4,14.6334]
[1745799691593,1.11852,1787.5,1787.4,4.606]
[1745799691783,5.98142,1787.5,1787.4,4.606]
[1745799691986,1.11864,1787.4,1787.2,13.2352]
[1745799692684,1.11864,1787.3,1787.2,13.2352]
[1745799692890,1.11862,1787.4,1787.2,13.2352]
[1745799693087,11.15082,1787.4,1787.2,13.2352]
[1745799693293,1.11864,1787.3,1787.2,13.2352]
[1745799693796,11.15081,1787.4,1787.2,13.2352]
[1745799693996,1.11864,1787.3,1787.2,13.2352]
[1745799694290,1.11861,1787.4,1787.2,13.2352]
[1745799694497,1.11864,1787.3,1787.2,13.2352]
[1745799695091,1.11864,1787.3,1787.2,10.0274]
[1745799698193,5.98144,1787.5,1787.2,16.14607]
[1745799698497,5.98147,1787.5,1787.2,11.1461]